fUSD/lending_fUSD_20250212
["ID","MTS","AMOUNT","RATE_DAILY","PERIOD"]
[352833933,1739353882501,-500.0,0.00017123,2]
[352833934,1739353882510,-520.83958859,0.00017123,2]
[352833935,1739353882520,-595.31369109,0.00017123,2]
[352833936,1739353882529,-500.0,0.00017123,2]
[352833937,1739353882539,-592.58,0.00017123,2]
[352833938,1739353882548,-500.0,0.00017123,2]
[352833939,1739353882558,-514.54122598,0.00017123,2]
[352833940,1739353882567,-500.0,0.00017123,2]
[352833941,1739353882577,-500.0,0.00017123,2]
[352833942,1739353882587,-500.0,0.00017123,2]
[352833943,1739353882596,-500.0,0.00017123,2]
[352833944,1739353882606,-500.0,0.00017123,2]
[352833945,1739353882616,-524.26795851,0.00017123,2]
[352833946,1739353882626,-519.0407259,0.00017123,2]
[352833947,1739353882635,-500.0,0.00017123,2]
[352833948,1739353882645,-500.0,0.00017123,2]
[352833949,1739353882655,-633.74,0.00017123,2]
[352833950,1739353882665,-500.0,0.00017123,2]
[352833951,1739353882675,-500.0,0.00017123,2]
[352833952,1739353882684,-520.92248105,0.00017123,2]
[352833953,1739353882694,-500.0,0.00017123,2]
[352833954,1739353882704,-516.88,0.00017123,2]
[352833955,1739353882714,-587.03968242,0.00017123,2]
[352833956,1739353882724,-500.0,0.00017123,2]
[352833957,1739353882734,-440.0,0.00017123,2]
[352833958,1739353882744,-514.04475882,0.00017123,2]
[352833959,1739353882754,-500.0,0.00017123,2]
[352833960,1739353882764,-500.0,0.00017123,2]
[352833961,1739353882774,-258.55060125,0.00017123,2]
[352833962,1739353882784,-599.8656836,0.00017123,2]
[352833963,1739353882795,-510.03019971,0.00017123,2]
[352833964,1739353882805,-500.0,0.00017123,2]
[352833965,1739353882815,-500.0,0.00017123,2]
[352833966,1739353882826,-528.27442539,0.00017123,2]
[352833967,1739353882836,-500.0,0.00017123,2]
[352833968,1739353882846,-500.0,0.00017123,2]
[352833969,1739353882856,-500.0,0.00017123,2]
[352833970,1739353882866,-500.0,0.00017123,2]
[352833971,1739353882876,-500.0,0.00017123,2]
[352833972,1739353882885,-446.52078462,0.00017123,2]
[352833973,1739353882895,-500.0,0.00017123,2]
[352833974,1739353882907,-500.0,0.00017123,2]
[352833975,1739353882918,-610.21,0.00017123,2]
[352833976,1739353882927,-493.89,0.00017123,2]
[352833977,1739353882937,-500.0,0.00017123,2]
[352833978,1739353882947,-500.0,0.00017123,2]
[352833979,1739353882956,-584.94,0.00017123,2]
[352833980,1739353882966,-478.24600259,0.00017123,2]
[352833981,1739353882975,-545.64,0.00017123,2]
[352833982,1739353882984,-254.45,0.00017123,2]
[352833983,1739353882993,-425.5525377,0.00017123,2]
[352833984,1739353883003,-500.0,0.00017123,2]
[352833985,1739353883012,-500.0,0.00017123,2]
[352833986,1739353883022,-500.0,0.00017123,2]
[352833987,1739353883031,-500.0,0.00017123,2]
[352833988,1739353883040,-500.0,0.00017123,2]
[352833989,1739353883051,-500.0,0.00017123,2]
[352833990,1739353883060,-500.0,0.00017123,2]
[352833991,1739353883070,-500.0,0.00017123,2]
[352833992,1739353883080,-500.0,0.00017123,2]
[352833993,1739353883089,-500.0,0.00017123,2]
[352833994,1739353883100,-500.0,0.00017123,2]
[352833995,1739353883109,-313.43523478,0.00017123,2]
[352833996,1739353883119,-500.0,0.00017123,2]
[352833997,1739353883128,-500.0,0.00017123,2]
[352833998,1739353883139,-237.54781866,0.00017123,2]
[352833999,1739353883148,-503.67,0.00017123,2]
[352834000,1739353883161,-593.78,0.00017123,2]
[352834001,1739353883171,-355.37510794,0.00017123,2]
[352834002,1739353883180,-248.84530139,0.00017123,2]
[352834003,1739353883190,-507.806879,0.00017123,2]
[352834004,1739353883199,-500.0,0.00017123,2]
[352834005,1739353883209,-500.0,0.00017123,2]
[352834006,1739353883219,-508.75417327,0.00017123,2]
[352834007,1739353883230,-500.0,0.00017123,2]
[352834008,1739353883239,-272.42280117,0.00017123,2]
[352834009,1739353883249,-500.0,0.00017123,2]
[352834010,1739353883259,-500.0,0.00017123,2]
[352834011,1739353883269,-301.85856908,0.00017123,2]
[352834012,1739353883279,-500.0,0.00017123,2]
[352834013,1739353883290,-500.0,0.00017123,2]
[352834014,1739353883300,-500.0,0.00017123,2]
[352834015,1739353883310,-500.0,0.00017123,2]
[352834016,1739353883321,-200.3334184,0.00017123,2]
[352834017,1739353883333,-500.0,0.00017123,2]
[352834018,1739353883343,-632.07,0.00017123,2]
[352834019,1739353883352,-628.15,0.00017123,2]
[352834020,1739353883363,-500.0,0.00017123,2]
[352834021,1739353883372,-500.0,0.00017123,2]
[352834022,1739353883382,-500.0,0.00017123,2]
[352834023,1739353883393,-500.0,0.00017123,2]
[352834024,1739353883410,-514.28377508,0.00017123,2]
[352834025,1739353883420,-571.09,0.00017123,2]
[352834026,1739353883430,-599.41149075,0.00017123,2]
[352834027,1739353883440,-509.55473289,0.00017123,2]
[352834028,1739353883449,-500.0,0.00017123,2]
[352834029,1739353883459,-500.0,0.00017123,2]
[352834030,1739353883469,-500.0,0.00017123,2]
[352834031,1739353883479,-500.0,0.00017123,2]
[352834032,1739353883489,-500.0,0.00017123,2]
[352834033,1739353883498,-500.0,0.00017123,2]
[352834034,1739353883508,-500.0,0.00017123,2]
[352834035,1739353883518,-500.0,0.00017123,2]
[352834036,1739353883528,-513.49815247,0.00017123,2]
[352834037,1739353883537,-500.0,0.00017123,2]
[352834038,1739353883547,-586.73,0.00017123,2]
[352834039,1739353883557,-222.43838495,0.00017123,2]
[352834040,1739353883566,-520.83,0.00017123,2]
[352834041,1739353883576,-500.0,0.00017123,2]
[352834042,1739353883587,-500.0,0.00017123,2]
[352834043,1739353883598,-632.93,0.00017123,2]
[352834044,1739353883609,-500.0,0.00017123,2]
[352834045,1739353883619,-168.36412686,0.00017123,2]
[352834046,1739353883631,-500.0,0.00017123,2]
[352834047,1739353883642,-500.0,0.00017123,2]
[352834048,1739353883653,-500.0,0.00017123,2]
[352834049,1739353883664,-500.0,0.00017123,2]
[352834050,1739353883673,-579.302537,0.00017123,2]
[352834051,1739353883682,-500.0,0.00017123,2]
[352834052,1739353883691,-500.0,0.00017123,2]
[352834053,1739353883701,-500.0,0.00017123,2]
[352834054,1739353883711,-500.0,0.00017123,2]
[352834055,1739353883720,-500.0,0.00017123,2]
[352834056,1739353883730,-500.0,0.00017123,2]
[352834057,1739353883739,-579.8130228,0.00017123,2]
[352834058,1739353883749,-500.0,0.00017123,2]
[352834059,1739353883759,-525.31,0.00017123,2]
[352834060,1739353883769,-2037.7,0.00017123,2]
[352834061,1739353883779,-500.0,0.00017123,2]
[352834062,1739353883789,-500.0,0.00017123,2]
[352834063,1739353883799,-500.0,0.00017123,2]
[352834064,1739353883809,-535.53417212,0.00017123,2]
[352834065,1739353883819,-564.87,0.00017123,2]
[352834066,1739353883828,-500.0,0.00017123,2]
[352834067,1739353883837,-500.0,0.00017123,2]
[352834068,1739353883848,-500.0,0.00017123,2]
[352834069,1739353883858,-500.0,0.00017123,2]
[352834070,1739353883867,-500.0,0.00017123,2]
[352834071,1739353883878,-500.0,0.00017123,2]
[352834072,1739353883888,-500.0,0.00017123,2]
[352834073,1739353883897,-503.93267338,0.00017123,2]
[352834074,1739353883909,-500.0,0.00017123,2]
[352834075,1739353883919,-872.5,0.00017123,2]
[352834076,1739353883929,-500.0,0.00017123,2]
[352834077,1739353883939,-500.0,0.00017123,2]
[352834078,1739353883949,-497.98769712,0.00017123,2]
[352834079,1739353883959,-500.0,0.00017123,2]
[352834080,1739353883969,-500.0,0.00017123,2]
[352834081,1739353883978,-157.93652638,0.00017123,2]
[352834082,1739353883988,-515.26013147,0.00017123,2]
[352834083,1739353883998,-500.0,0.00017123,2]
[352834084,1739353884007,-500.0,0.00017123,2]
[352834085,1739353884017,-500.0,0.00017123,2]
[352834086,1739353884027,-500.0,0.00017123,2]
[352834087,1739353884038,-500.0,0.00017123,2]
[352834088,1739353884048,-606.21,0.00017123,2]
[352834089,1739353884057,-500.0,0.00017123,2]
[352834090,1739353884068,-604.18,0.00017123,2]
[352834091,1739353884078,-500.0,0.00017123,2]
[352834092,1739353884088,-407.85890357,0.00017123,2]
[352834093,1739353884098,-500.0,0.00017123,2]
[352834094,1739353884107,-500.0,0.00017123,2]
[352834095,1739353884117,-607.52,0.00017123,2]
[352834096,1739353884126,-588.36,0.00017123,2]
[352834097,1739353884136,-604.87,0.00017123,2]
[352834098,1739353884146,-500.0,0.00017123,2]
[352834099,1739353884157,-500.0,0.00017123,2]
[352834100,1739353884167,-500.0,0.00017123,2]
[352834101,1739353884177,-564.13882654,0.00017123,2]
[352834102,1739353884186,-500.0,0.00017123,2]
[352834103,1739353884196,-500.0,0.00017123,2]
[352834104,1739353884207,-523.64,0.00017123,2]
[352834105,1739353884217,-500.0,0.00017123,2]
[352834106,1739353884226,-500.0,0.00017123,2]
[352834107,1739353884236,-500.0,0.00017123,2]
[352834108,1739353884246,-731.56,0.00017123,2]
[352834109,1739353884256,-668.89,0.00017123,2]
[352834110,1739353884266,-500.0,0.00017123,2]
[352834111,1739353884276,-500.0,0.00017123,2]
[352834112,1739353884286,-541.85046066,0.00017123,2]
[352834113,1739353884296,-1419.35,0.00017123,2]
[352834114,1739353884306,-500.0,0.00017123,2]
[352834115,1739353884319,-500.0,0.00017123,2]
[352834116,1739353884330,-500.0,0.00017123,2]
[352834117,1739353884505,-500.0,0.00017123,2]
[352834118,1739353884515,-516.3564256,0.00017123,2]
[352834119,1739353884525,-500.0,0.00017123,2]
[352834120,1739353884534,-500.0,0.00017123,2]
[352834121,1739353884543,-398.05467724,0.00017123,2]
[352834122,1739353884552,-529.4695467,0.00017123,2]
[352834123,1739353884562,-511.78294505,0.00017123,2]
[352834124,1739353884571,-646.31,0.00017123,2]
[352834125,1739353884580,-513.32,0.00017123,2]
[352834126,1739353884589,-500.0,0.00017123,2]
[352834127,1739353884599,-500.0,0.00017123,2]
[352834128,1739353884608,-500.0,0.00017123,2]
[352834129,1739353884618,-500.0,0.00017123,2]
[352834130,1739353884628,-500.0,0.00017123,2]
[352834131,1739353884638,-500.0,0.00017123,2]
[352834132,1739353884648,-500.0,0.00017123,2]
[352834133,1739353884660,-827.83,0.00017123,2]
[352834134,1739353884669,-636.25659254,0.00017123,2]
[352834135,1739353884679,-500.0,0.00017123,2]
[352834136,1739353884689,-500.0,0.00017123,2]
[352834137,1739353884699,-707.77,0.00017123,2]
[352834138,1739353884708,-500.0,0.00017123,2]
[352834139,1739353884719,-500.0,0.00017123,2]
[352834140,1739353884728,-500.0,0.00017123,2]
[352834141,1739353884737,-509.19706985,0.00017123,2]
[352834142,1739353884747,-676.72,0.00017123,2]
[352834143,1739353884756,-500.0,0.00017123,2]
[352834144,1739353884766,-500.0,0.00017123,2]
[352834145,1739353884775,-500.0,0.00017123,2]
[352834146,1739353884784,-511.52741097,0.00017123,2]
[352834147,1739353884794,-583.33,0.00017123,2]
[352834148,1739353884804,-500.0,0.00017123,2]
[352834149,1739353884814,-500.0,0.00017123,2]
[352834150,1739353884824,-731.76,0.00017123,2]
[352834151,1739353884833,-510.28358722,0.00017123,2]
[352834152,1739353884843,-500.0,0.00017123,2]
[352834153,1739353884853,-500.0,0.00017123,2]
[352834154,1739353884863,-500.0,0.00017123,2]
[352834155,1739353884872,-819.97,0.00017123,2]
[352834156,1739353884882,-500.0,0.00017123,2]
[352834157,1739353884892,-500.0,0.00017123,2]
[352834158,1739353884901,-500.0,0.00017123,2]
[352834159,1739353884912,-518.39889569,0.00017123,2]
[352834160,1739353884922,-445.0,0.00017123,2]
[352834161,1739353884932,-500.0,0.00017123,2]
[352834162,1739353884942,-500.0,0.00017123,2]
[352834163,1739353884951,-500.0,0.00017123,2]
[352834164,1739353884961,-500.0,0.00017123,2]
[352834165,1739353884971,-606.11805278,0.00017123,2]
[352834166,1739353884981,-252.72731282,0.00017123,2]
[352834167,1739353884991,-500.0,0.00017123,2]
[352834168,1739353885000,-740.43,0.00017123,2]
[352834169,1739353885010,-500.0,0.00017123,2]
[352834170,1739353885020,-500.0,0.00017123,2]
[352834171,1739353885030,-500.0,0.00017123,2]
[352834172,1739353885039,-500.0,0.00017123,2]
[352834173,1739353885049,-500.0,0.00017123,2]
[352834174,1739353885059,-500.0,0.00017123,2]
[352834175,1739353885069,-500.0,0.00017123,2]
[352834176,1739353885078,-514.85463806,0.00017123,2]
[352834177,1739353885087,-500.0,0.00017124,2]
[352834178,1739353885097,-353.76817963,0.00017206,2]
[352834179,1739353885106,-885.65,0.00017223,2]
[352834180,1739353885116,-500.0,0.00017224,2]
[352834181,1739353885126,-4495.0284788,0.00017248,2]
[352834182,1739353885135,-1855.1533301,0.00017248,2]
[352834183,1739353885145,-291.385485,0.0001726,2]
[352834184,1739353885155,-307.896454,0.0001726,2]
[352834185,1739353885165,-1242.33,0.0001726,2]
[352834186,1739353885175,-218.32965966,0.0001726,2]
[352834187,1739353885184,-523.68170619,0.0001726,2]
[352834188,1739353885194,-500.0,0.0001726,2]
[352834189,1739353885204,-455.56122124,0.0001726,2]
[352834190,1739353885215,-449.26316821,0.0001726,2]
[352834191,1739353885224,-500.0,0.0001726,2]
[352834192,1739353885234,-500.0,0.0001726,2]
[352834193,1739353885244,-509.69425479,0.0001726,2]
[352834194,1739353885254,-520.88989263,0.0001726,2]
[352834195,1739353885264,-500.0,0.0001726,2]
[352834196,1739353885274,-500.0,0.0001726,2]
[352834197,1739353885288,-520.33411775,0.0001726,2]
[352834198,1739353885298,-486.45956031,0.0001726,2]
[352834199,1739353885308,-523.77381104,0.0001726,2]
[352834200,1739353885319,-500.0,0.0001726,2]
[352834201,1739353885332,-521.23069951,0.0001726,2]
[352834202,1739353885343,-500.0,0.0001726,2]
[352834203,1739353885354,-500.0,0.0001726,2]
[352834204,1739353885364,-500.0,0.0001726,2]
[352834205,1739353885374,-517.48757446,0.0001726,2]
[352834206,1739353885385,-508.55799499,0.0001726,2]
[352834207,1739353885395,-500.0,0.0001726,2]
[352834208,1739353885408,-500.0,0.0001726,2]
[352834209,1739353885418,-239.14467081,0.0001726,2]
[352834210,1739353885429,-329.10386106,0.0001726,2]
[352834211,1739353885439,-500.0,0.0001726,2]
[352834212,1739353885450,-518.54771519,0.0001726,2]
[352834213,1739353885461,-500.0,0.0001726,2]
[352834214,1739353885471,-524.19,0.0001726,2]
[352834215,1739353885482,-500.0,0.0001726,2]
[352834216,1739353885493,-2071.67,0.0001726,2]
[352834217,1739353885503,-500.0,0.0001726,2]
[352834218,1739353885513,-500.0,0.0001726,2]
[352834219,1739353885524,-500.0,0.0001726,2]
[352834220,1739353885534,-500.0,0.0001726,2]
[352834221,1739353885543,-500.0,0.0001726,2]
[352834222,1739353885553,-500.0,0.0001726,2]
[352834223,1739353885563,-500.0,0.0001726,2]
[352834224,1739353885572,-500.0,0.0001726,2]
[352834225,1739353885582,-500.0,0.0001726,2]
[352834226,1739353885591,-500.0,0.0001726,2]
[352834227,1739353885601,-500.0,0.0001726,2]
[352834228,1739353885610,-500.0,0.0001726,2]
[352834229,1739353885620,-500.0,0.0001726,2]
[352834230,1739353885630,-500.0,0.0001726,2]
[352834231,1739353885640,-592.58,0.0001726,2]
[352834232,1739353885650,-500.0,0.0001726,2]
[352834233,1739353885662,-500.0,0.0001726,2]
[352834234,1739353885672,-500.0,0.0001726,2]
[352834235,1739353885682,-360.47470218,0.0001726,2]
[352834236,1739353885692,-500.0,0.0001726,2]
[352834237,1739353885702,-500.0,0.0001726,2]
[352834238,1739353885711,-495.17396519,0.0001726,2]
[352834239,1739353885721,-633.74,0.0001726,2]
[352834240,1739353885731,-488.29919202,0.0001726,2]
[352834241,1739353885740,-500.0,0.0001726,2]
[352834242,1739353885750,-500.0,0.0001726,2]
[352834243,1739353885759,-516.88,0.0001726,2]
[352834244,1739353885768,-503.42795137,0.0001726,2]
[352834245,1739353885777,-500.0,0.0001726,2]
[352834246,1739353885787,-500.0,0.0001726,2]
[352834247,1739353885797,-500.0,0.0001726,2]
[352834248,1739353885811,-504.26,0.0001726,2]
[352834249,1739353885821,-500.0,0.0001726,2]
[352834250,1739353885830,-500.0,0.0001726,2]
[352834251,1739353885841,-500.0,0.0001726,2]
[352834252,1739353885851,-500.0,0.0001726,2]
[352834253,1739353885861,-500.0,0.0001726,2]
[352834254,1739353885872,-500.0,0.0001726,2]
[352834255,1739353885881,-500.0,0.0001726,2]
[352834256,1739353885891,-500.0,0.0001726,2]
[352834257,1739353885901,-500.0,0.0001726,2]
[352834258,1739353885912,-500.0,0.0001726,2]
[352834259,1739353885922,-500.0,0.0001726,2]
[352834260,1739353885932,-500.0,0.0001726,2]
[352834261,1739353885942,-500.0,0.0001726,2]
[352834262,1739353885953,-500.0,0.0001726,2]
[352834263,1739353885963,-500.0,0.0001726,2]
[352834264,1739353885974,-416.01055274,0.0001726,2]
[352834265,1739353885984,-500.0,0.0001726,2]
[352834266,1739353885993,-500.0,0.0001726,2]
[352834267,1739353886003,-529.13257164,0.0001726,2]
[352834268,1739353886013,-510.93259283,0.0001726,2]
[352834269,1739353886023,-500.0,0.0001726,2]
[352834270,1739353886032,-516.40718738,0.0001726,2]
[352834271,1739353886042,-500.0,0.0001726,2]
[352834272,1739353886053,-500.0,0.0001726,2]
[352834273,1739353886063,-520.11590819,0.0001726,2]
[352834274,1739353886072,-500.0,0.0001726,2]
[352834275,1739353886083,-632.07,0.0001726,2]
[352834276,1739353886093,-628.15,0.0001726,2]
[352834277,1739353886102,-562.51966143,0.0001726,2]
[352834278,1739353886113,-500.0,0.0001726,2]
[352834279,1739353886123,-500.0,0.0001726,2]
[352834280,1739353886132,-500.0,0.0001726,2]
[352834281,1739353886142,-571.09,0.0001726,2]
[352834282,1739353886151,-500.0,0.0001726,2]
[352834283,1739353886163,-500.0,0.0001726,2]
[352834284,1739353886174,-500.0,0.0001726,2]
[352834285,1739353886184,-500.0,0.0001726,2]
[352834286,1739353886194,-500.0,0.0001726,2]
[352834287,1739353886204,-500.0,0.0001726,2]
[352834288,1739353886214,-500.0,0.0001726,2]
[352834289,1739353886224,-389.62412879,0.0001726,2]
[352834290,1739353886234,-500.0,0.0001726,2]
[352834291,1739353886244,-586.73,0.0001726,2]
[352834292,1739353886254,-520.83,0.0001726,2]
[352834293,1739353886264,-500.0,0.0001726,2]
[352834294,1739353886274,-500.0,0.0001726,2]
[352834295,1739353886284,-1251.81,0.0001726,4]
[352834296,1739353886294,-632.93,0.0001726,2]
[352834297,1739353886304,-500.0,0.0001726,2]
[352834298,1739353886315,-445.19170682,0.0001726,2]
[352834299,1739353886326,-500.0,0.0001726,2]
[352834300,1739353886338,-500.0,0.0001726,2]
[352834301,1739353886348,-500.0,0.0001726,2]
[352834302,1739353886359,-500.0,0.0001726,2]
[352834303,1739353886369,-268.71591717,0.0001726,2]
[352834304,1739353886379,-489.94097305,0.0001726,2]
[352834305,1739353886389,-500.0,0.0001726,2]
[352834306,1739353886400,-500.0,0.0001726,2]
[352834307,1739353886413,-525.31,0.0001726,2]
[352834308,1739353886423,-2037.7,0.0001726,2]
[352834309,1739353886434,-500.0,0.0001726,2]
[352834310,1739353886444,-500.0,0.0001726,2]
[352834311,1739353886454,-500.0,0.0001726,2]
[352834312,1739353886464,-564.87,0.0001726,2]
[352834313,1739353886473,-510.75426068,0.0001726,2]
[352834314,1739353886483,-157.56194098,0.0001726,2]
[352834315,1739353886504,-509.03130409,0.0001726,2]
[352834316,1739353886517,-500.0,0.0001726,2]
[352834317,1739353886528,-500.0,0.0001726,2]
[352834318,1739353886538,-500.0,0.0001726,2]
[352834319,1739353886548,-500.0,0.0001726,2]
[352834320,1739353886558,-500.0,0.0001726,2]
[352834321,1739353886568,-872.5,0.0001726,2]
[352834322,1739353886578,-500.0,0.0001726,2]
[352834323,1739353886588,-500.0,0.0001726,2]
[352834324,1739353886597,-500.0,0.0001726,2]
[352834325,1739353886607,-305.7529999,0.0001726,2]
[352834326,1739353886617,-500.0,0.0001726,2]
[352834327,1739353886627,-500.0,0.0001726,2]
[352834328,1739353886637,-500.0,0.0001726,2]
[352834329,1739353886647,-500.0,0.0001726,2]
[352834330,1739353886658,-606.21,0.0001726,2]
[352834331,1739353886667,-500.0,0.0001726,2]
[352834332,1739353886677,-604.18,0.0001726,2]
[352834333,1739353886686,-500.0,0.0001726,2]
[352834334,1739353886696,-500.0,0.0001726,2]
[352834335,1739353886706,-500.0,0.0001726,2]
[352834336,1739353886715,-607.52,0.0001726,2]
[352834337,1739353886725,-588.36,0.0001726,2]
[352834338,1739353886735,-604.87,0.0001726,2]
[352834339,1739353886744,-500.0,0.0001726,2]
[352834340,1739353886754,-508.72300345,0.0001726,2]
[352834341,1739353886763,-500.0,0.0001726,2]
[352834342,1739353886772,-507.79310394,0.0001726,2]
[352834343,1739353886782,-513.83621612,0.0001726,2]
[352834344,1739353886791,-523.64,0.0001726,2]
[352834345,1739353886801,-500.0,0.0001726,2]
[352834346,1739353886811,-500.0,0.0001726,2]
[352834347,1739353886822,-500.0,0.0001726,2]
[352834348,1739353886832,-731.56,0.0001726,2]
[352834349,1739353886844,-668.89,0.0001726,2]
[352834350,1739353886854,-500.0,0.0001726,2]
[352834351,1739353886864,-500.0,0.0001726,2]
[352834352,1739353886874,-1419.35,0.0001726,2]
[352834353,1739353886884,-500.0,0.0001726,2]
[352834354,1739353886894,-500.0,0.0001726,2]
[352834355,1739353886903,-500.0,0.0001726,2]
[352834356,1739353886914,-500.0,0.0001726,2]
[352834357,1739353886924,-500.0,0.0001726,2]
[352834358,1739353886934,-500.0,0.0001726,2]
[352834359,1739353886944,-646.31,0.0001726,2]
[352834360,1739353886954,-513.32,0.0001726,2]
[352834361,1739353886964,-500.0,0.0001726,2]
[352834362,1739353886974,-500.0,0.0001726,2]
[352834363,1739353886984,-500.0,0.0001726,2]
[352834364,1739353886995,-500.0,0.0001726,2]
[352834365,1739353887004,-500.0,0.0001726,2]
[352834366,1739353887014,-329.65296335,0.0001726,2]
[352834367,1739353887031,-500.0,0.0001726,2]
[352834368,1739353887040,-827.83,0.0001726,2]
[352834369,1739353887051,-500.0,0.0001726,2]
[352834370,1739353887060,-166.66276132,0.0001726,2]
[352834371,1739353887070,-707.77,0.0001726,2]
[352834372,1739353887080,-519.43843624,0.0001726,2]
[352834373,1739353887090,-500.0,0.0001726,2]
[352834374,1739353887100,-500.0,0.0001726,2]
[352834375,1739353887110,-676.72,0.0001726,2]
[352834376,1739353887119,-500.0,0.0001726,2]
[352834377,1739353887128,-500.0,0.0001726,2]
[352834378,1739353887138,-500.0,0.0001726,2]
[352834379,1739353887147,-583.33,0.0001726,2]
[352834380,1739353887157,-500.0,0.0001726,2]
[352834381,1739353887167,-500.0,0.0001726,2]
[352834382,1739353887177,-731.76,0.0001726,2]
[352834383,1739353887187,-500.0,0.0001726,2]
[352834384,1739353887197,-500.0,0.0001726,2]
[352834385,1739353887207,-500.0,0.0001726,2]
[352834386,1739353887216,-819.97,0.0001726,2]
[352834387,1739353887226,-500.0,0.0001726,2]
[352834388,1739353887235,-500.0,0.0001726,2]
[352834389,1739353887245,-500.0,0.0001726,2]
[352834390,1739353887255,-500.0,0.0001726,2]
[352834391,1739353887264,-500.0,0.0001726,2]
[352834392,1739353887273,-500.0,0.0001726,2]
[352834393,1739353887283,-500.0,0.0001726,2]
[352834394,1739353887292,-500.0,0.0001726,2]
[352834395,1739353887302,-740.43,0.0001726,2]
[352834396,1739353887312,-500.0,0.0001726,2]
[352834397,1739353887326,-500.0,0.0001726,2]
[352834398,1739353887335,-500.0,0.0001726,2]
[352834399,1739353887346,-500.0,0.0001726,2]
[352834400,1739353887356,-500.0,0.0001726,2]
[352834401,1739353887367,-500.0,0.0001726,2]
[352834402,1739353887377,-500.0,0.0001726,2]
[352834403,1739353887386,-302.83,0.0001726,2]
[352834404,1739353887397,-500.0,0.00017287,2]
[352834405,1739353887408,-500.0,0.00017287,2]
[352834406,1739353887419,-500.0,0.00017287,2]
[352834407,1739353887429,-500.0,0.00017287,2]
[352834408,1739353887439,-500.0,0.00017287,2]
[352834409,1739353887449,-500.0,0.00017287,2]
[352834410,1739353887459,-500.0,0.00017287,2]
[352834411,1739353887468,-500.0,0.00017287,2]
[352834412,1739353887478,-500.0,0.00017287,2]
[352834413,1739353887489,-500.0,0.00017287,2]
[352834414,1739353887498,-500.0,0.00017287,2]
[352834415,1739353887509,-500.0,0.00017287,2]
[352834416,1739353887519,-500.0,0.00017287,2]
[352834417,1739353887533,-500.0,0.00017287,2]
[352834418,1739353887543,-500.0,0.00017287,2]
[352834419,1739353887552,-500.0,0.00017287,2]
[352834420,1739353887562,-500.0,0.00017287,2]
[352834421,1739353887571,-640.05936775,0.00017287,2]
[352834422,1739353887580,-500.0,0.00017324,2]
[352834423,1739353887590,-291.385485,0.00017397,2]
[352834424,1739353887599,-307.896454,0.00017397,2]
[352834425,1739353887609,-156.957399,0.00017397,2]
[352834426,1739353887619,-1242.33,0.00017397,2]
[352834427,1739353887628,-567.23914237,0.00017397,2]
[352834428,1739353887638,-500.0,0.00017397,2]
[352834429,1739353887648,-333.49940345,0.00017397,2]
[352834430,1739353887659,-500.0,0.00017397,2]
[352834431,1739353887668,-500.0,0.00017397,2]
[352834432,1739353887677,-500.0,0.00017397,2]